[Event "Titled Tuesday Blitz July 25 Early 2023"]
[White "Vujacic, Igor"]
[Black "Tanmay Jain"]
[WhiteFideId "932620"]
[BlackFideId "45015481"]
[WhiteElo "2341"]
[BlackElo "2452"]
[Result "1-0"]
[Round "6"]
[TimeControl "180+2"]
[Date "2023.07.25"]
[WhiteClock "0:00:05"]
[BlackClock "0:00:48"]
[Board "158"]

1. d4 {[%clk 0:03:00]}  Nf6 {[%clk 0:02:59]} 2. Bf4 {[%clk 0:03:01]}  e6 {[%clk 0:02:59]} 3. e3 {[%clk 0:03:02]}  d5 {[%clk 0:03:00]} 4. Nf3 {[%clk 0:03:01]}  Bd6 {[%clk 0:03:00]} 5. Ne5 {[%clk 0:02:59]}  O-O {[%clk 0:03:01]} 6. Nd2 {[%clk 0:02:58]}  b6 {[%clk 0:03:01]} 7. c3 {[%clk 0:02:53]}  Bb7 {[%clk 0:03:01]} 8. Bd3 {[%clk 0:02:51]}  c5 {[%clk 0:03:00]} 9. Bg3 {[%clk 0:02:43]}  Ne4 {[%clk 0:02:59]} 10. f3 {[%clk 0:02:14]}  Nxg3 {[%clk 0:02:36]} 11. hxg3 {[%clk 0:01:54]}  f5 {[%clk 0:02:35]} 12. f4 {[%clk 0:01:50]}  Nc6 {[%clk 0:02:18]} 13. g4 {[%clk 0:01:21]}  Bxe5 {[%clk 0:02:14]} 14. dxe5 {[%clk 0:01:12]}  d4 {[%clk 0:02:13]} 15. exd4 {[%clk 0:01:03]}  cxd4 {[%clk 0:02:13]} 16. Bc4 {[%clk 0:00:51]}  Qe7 {[%clk 0:01:58]} 17. gxf5 {[%clk 0:00:32]}  Rxf5 {[%clk 0:01:57]} 18. Qg4 {[%clk 0:00:32]}  Raf8 {[%clk 0:01:52]} 19. Bd3 {[%clk 0:00:33]}  dxc3 {[%clk 0:01:45]} 20. bxc3 {[%clk 0:00:30]}  Qc5 {[%clk 0:01:44]} 21. Bxf5 {[%clk 0:00:23]}  Rxf5 {[%clk 0:01:40]} 22. Qh3 {[%clk 0:00:11]}  h6 {[%clk 0:01:37]} 23. Qg3 {[%clk 0:00:12]}  Kh7 {[%clk 0:01:24]} 24. Ne4 {[%clk 0:00:10]}  Qc4 {[%clk 0:01:12]} 25. Nd6 {[%clk 0:00:11]}  Qd5 {[%clk 0:00:54]} 26. Nxf5 {[%clk 0:00:09]}  exf5 {[%clk 0:00:55]} 27. O-O {[%clk 0:00:09]}  Ne7 {[%clk 0:00:50]} 28. Rad1 {[%clk 0:00:09]}  Qe6 {[%clk 0:00:50]} 29. Rd6 {[%clk 0:00:08]}  Qf7 {[%clk 0:00:49]} 30. Rd7 {[%clk 0:00:07]}  Bc6 {[%clk 0:00:47]} 31. Rxa7 {[%clk 0:00:07]}  Qe6 {[%clk 0:00:45]} 32. Rd1 {[%clk 0:00:05]}  Ng6 {[%clk 0:00:43]} 33. Rd6 {[%clk 0:00:04]}  Qe8 {[%clk 0:00:43]} 34. Rxg6 {[%clk 0:00:02]}  Qxg6 {[%clk 0:00:43]} 35. Qxg6+ {[%clk 0:00:03]}  Kxg6 {[%clk 0:00:44]} 36. Ra6 {[%clk 0:00:03]}  Bd7 {[%clk 0:00:44]} 37. Rxb6+ {[%clk 0:00:04]}  Kf7 {[%clk 0:00:45]} 38. a3 {[%clk 0:00:03]}  Be6 {[%clk 0:00:45]} 39. Kf2 {[%clk 0:00:03]}  Bc4 {[%clk 0:00:46]} 40. g3 {[%clk 0:00:03]}  g5 {[%clk 0:00:47]} 41. Ke3 {[%clk 0:00:04]}  Ke7 {[%clk 0:00:47]} 42. Rxh6 {[%clk 0:00:04]}  Be2 {[%clk 0:00:48]} 43. Rf6 {[%clk 0:00:04]}  gxf4+ {[%clk 0:00:48]} 44. gxf4 {[%clk 0:00:04]}  Bc4 {[%clk 0:00:49]} 45. Kd4 {[%clk 0:00:05]}  Be6 {[%clk 0:00:48]} 46. a4 {[%clk 0:00:05]}  Bd7 {[%clk 0:00:49]} 47. a5 {[%clk 0:00:06]}  Bc8 {[%clk 0:00:49]} 48. Kc5 {[%clk 0:00:06]}  Bb7 {[%clk 0:00:50]} 49. a6 {[%clk 0:00:07]}  Be4 {[%clk 0:00:49]} 50. a7 {[%clk 0:00:07]}  Kd7 {[%clk 0:00:49]} 51. Kb6 {[%clk 0:00:07]}  Kc8 {[%clk 0:00:49]} 52. Rc6+ {[%clk 0:00:06]}  Kd7 {[%clk 0:00:50]} 53. a8=Q {[%clk 0:00:05]}  Ke7 {[%clk 0:00:48]} 54. Qb7+ {[%clk 0:00:05]} 1-0


[Site "https://www.chess.com"]

[Event "Titled Tuesday Blitz July 25 Early 2023"]
[White "Romero Arzuaga, Yudel"]
[Black "Begunov, Konstantin"]
[WhiteFideId "3521010"]
[BlackFideId "4118510"]
[WhiteElo "2296"]
[BlackElo "2429"]
[Result "1-0"]
[Round "6"]
[TimeControl "180+2"]
[Date "2023.07.25"]
[WhiteClock "0:00:31"]
[BlackClock "0:00:00"]
[Board "168"]

1. d4 {[%clk 0:03:00]}  d5 {[%clk 0:03:00]} 2. Nf3 {[%clk 0:03:00]}  c6 {[%clk 0:03:00]} 3. Bf4 {[%clk 0:03:00]}  Bg4 {[%clk 0:02:59]} 4. e3 {[%clk 0:03:01]}  Qb6 {[%clk 0:02:59]} 5. Nbd2 {[%clk 0:03:00]}  Nd7 {[%clk 0:02:57]} 6. Bd3 {[%clk 0:03:00]}  e6 {[%clk 0:02:56]} 7. h3 {[%clk 0:03:00]}  Bh5 {[%clk 0:02:55]} 8. O-O {[%clk 0:03:00]}  Ngf6 {[%clk 0:02:56]} 9. c4 {[%clk 0:03:00]}  c5 {[%clk 0:02:54]} 10. dxc5 {[%clk 0:02:55]}  Nxc5 {[%clk 0:02:53]} 11. Be2 {[%clk 0:02:56]}  Be7 {[%clk 0:02:47]} 12. b4 {[%clk 0:02:52]}  Qxb4 {[%clk 0:02:25]} 13. Rb1 {[%clk 0:02:49]}  Qa3 {[%clk 0:02:16]} 14. Nb3 {[%clk 0:02:39]}  b6 {[%clk 0:01:52]} 15. Nfd4 {[%clk 0:02:30]}  Bxe2 {[%clk 0:01:47]} 16. Qxe2 {[%clk 0:02:30]}  O-O {[%clk 0:01:36]} 17. Nc6 {[%clk 0:02:27]}  Nce4 {[%clk 0:01:17]} 18. Rfc1 {[%clk 0:02:04]}  Rfc8 {[%clk 0:01:12]} 19. cxd5 {[%clk 0:01:52]}  Nxd5 {[%clk 0:01:08]} 20. Qf3 {[%clk 0:01:43]}  Nec3 {[%clk 0:00:52]} 21. Nxe7+ {[%clk 0:01:37]}  Qxe7 {[%clk 0:00:51]} 22. Ra1 {[%clk 0:01:33]}  Qf6 {[%clk 0:00:44]} 23. Kh1 {[%clk 0:01:20]}  Rc4 {[%clk 0:00:37]} 24. g3 {[%clk 0:01:18]}  Rac8 {[%clk 0:00:31]} 25. Nd2 {[%clk 0:01:12]}  R4c6 {[%clk 0:00:27]} 26. Kg2 {[%clk 0:01:04]}  g5 {[%clk 0:00:20]} 27. Qg4 {[%clk 0:00:55]}  h6 {[%clk 0:00:19]} 28. h4 {[%clk 0:00:53]}  Nxf4+ {[%clk 0:00:17]} 29. exf4 {[%clk 0:00:52]}  Rc5 {[%clk 0:00:16]} 30. Nf3 {[%clk 0:00:49]}  Ne4 {[%clk 0:00:10]} 31. fxg5 {[%clk 0:00:46]}  hxg5 {[%clk 0:00:08]} 32. Rxc5 {[%clk 0:00:38]}  Rxc5 {[%clk 0:00:07]} 33. Re1 {[%clk 0:00:37]}  Nd6 {[%clk 0:00:02]} 34. hxg5 {[%clk 0:00:37]}  Qf5 {[%clk 0:00:02]} 35. Qh5 {[%clk 0:00:36]}  Rc3 {[%clk 0:00:00]} 36. Rh1 {[%clk 0:00:31]} 1-0


[Site "https://www.chess.com"]

[Event "Titled Tuesday Blitz July 25 Early 2023"]
[White "Araujo Filho, Luiz Antonio Coel"]
[Black "JonSnowNW1"]
[WhiteFideId "2130661"]
[WhiteElo "2282"]
[BlackElo "2423"]
[Result "1-0"]
[Round "6"]
[TimeControl "180+2"]
[Date "2023.07.25"]
[WhiteClock "0:01:56"]
[BlackClock "0:01:59"]
[Board "169"]

1. d4 {[%clk 0:03:00]}  d5 {[%clk 0:03:00]} 2. Nf3 {[%clk 0:03:00]}  c6 {[%clk 0:02:59]} 3. e3 {[%clk 0:02:59]}  Nf6 {[%clk 0:02:59]} 4. Nbd2 {[%clk 0:03:00]}  e6 {[%clk 0:02:58]} 5. Bd3 {[%clk 0:02:59]}  Nbd7 {[%clk 0:02:56]} 6. Qe2 {[%clk 0:03:00]}  Be7 {[%clk 0:02:56]} 7. O-O {[%clk 0:03:00]}  O-O {[%clk 0:02:56]} 8. c3 {[%clk 0:02:59]}  b6 {[%clk 0:02:55]} 9. e4 {[%clk 0:02:59]}  dxe4 {[%clk 0:02:55]} 10. Nxe4 {[%clk 0:03:00]}  Bb7 {[%clk 0:02:55]} 11. Neg5 {[%clk 0:02:57]}  c5 {[%clk 0:02:52]} 12. Bd2 {[%clk 0:02:43]}  cxd4 {[%clk 0:02:46]} 13. cxd4 {[%clk 0:02:43]}  h6 {[%clk 0:02:41]} 14. Nxe6 {[%clk 0:02:42]}  fxe6 {[%clk 0:02:39]} 15. Qxe6+ {[%clk 0:02:42]}  Kh8 {[%clk 0:02:35]} 16. Nh4 {[%clk 0:02:42]}  Nc5 {[%clk 0:02:22]} 17. Ng6+ {[%clk 0:02:40]}  Kh7 {[%clk 0:02:21]} 18. Nxf8+ {[%clk 0:02:40]}  Kh8 {[%clk 0:02:20]} 19. Ng6+ {[%clk 0:02:34]}  Kh7 {[%clk 0:02:19]} 20. Nxe7+ {[%clk 0:02:21]}  Nxd3 {[%clk 0:02:18]} 21. Qf5+ {[%clk 0:02:21]}  Kh8 {[%clk 0:02:18]} 22. Ng6+ {[%clk 0:02:17]}  Kg8 {[%clk 0:02:18]} 23. Qxd3 {[%clk 0:02:17]}  Qd5 {[%clk 0:02:18]} 24. Nf4 {[%clk 0:02:13]}  Qg5 {[%clk 0:02:17]} 25. Qg6 {[%clk 0:02:06]}  Qh4 {[%clk 0:02:13]} 26. g3 {[%clk 0:02:04]}  Qg4 {[%clk 0:02:11]} 27. Qxg4 {[%clk 0:02:03]}  Nxg4 {[%clk 0:02:12]} 28. Rac1 {[%clk 0:02:00]}  Rd8 {[%clk 0:01:59]} 29. Be3 {[%clk 0:01:56]} 1-0


[Site "https://www.chess.com"]

[Event "Titled Tuesday Blitz July 25 Early 2023"]
[White "chessmateto"]
[Black "Lehtosaari, Mauri"]
[BlackFideId "501999"]
[WhiteElo "2338"]
[BlackElo "2473"]
[Result "0-1"]
[Round "6"]
[TimeControl "180+2"]
[Date "2023.07.25"]
[WhiteClock "0:00:06"]
[BlackClock "0:00:14"]
[Board "179"]

1. c4 {[%clk 0:03:00]}  c6 {[%clk 0:02:58]} 2. d4 {[%clk 0:03:00]}  d5 {[%clk 0:02:53]} 3. cxd5 {[%clk 0:03:00]}  cxd5 {[%clk 0:02:53]} 4. Nc3 {[%clk 0:03:00]}  Nf6 {[%clk 0:02:53]} 5. Bf4 {[%clk 0:03:00]}  Nc6 {[%clk 0:02:53]} 6. e3 {[%clk 0:02:59]}  a6 {[%clk 0:02:53]} 7. Nf3 {[%clk 0:02:57]}  Bg4 {[%clk 0:02:50]} 8. Be2 {[%clk 0:02:50]}  e6 {[%clk 0:02:46]} 9. O-O {[%clk 0:02:50]}  Bd6 {[%clk 0:02:44]} 10. Bxd6 {[%clk 0:02:40]}  Qxd6 {[%clk 0:02:45]} 11. Rc1 {[%clk 0:02:37]}  O-O {[%clk 0:02:44]} 12. a3 {[%clk 0:02:37]}  b5 {[%clk 0:02:42]} 13. Nd2 {[%clk 0:02:32]}  Bxe2 {[%clk 0:02:42]} 14. Qxe2 {[%clk 0:02:32]}  Na5 {[%clk 0:02:42]} 15. Rfd1 {[%clk 0:02:18]}  Rac8 {[%clk 0:02:39]} 16. e4 {[%clk 0:01:56]}  dxe4 {[%clk 0:02:38]} 17. Ndxe4 {[%clk 0:01:56]}  Nxe4 {[%clk 0:02:36]} 18. Nxe4 {[%clk 0:01:54]}  Qd5 {[%clk 0:02:27]} 19. Qg4 {[%clk 0:01:49]}  f5 {[%clk 0:02:24]} 20. Nf6+ {[%clk 0:01:49]}  Kf7 {[%clk 0:01:57]} 21. Nxd5 {[%clk 0:01:43]}  fxg4 {[%clk 0:01:56]} 22. Ne3 {[%clk 0:01:21]}  h5 {[%clk 0:01:53]} 23. Kf1 {[%clk 0:01:08]}  Nb3 {[%clk 0:01:51]} 24. Rc3 {[%clk 0:00:57]}  Rxc3 {[%clk 0:01:46]} 25. bxc3 {[%clk 0:00:58]}  Rc8 {[%clk 0:01:43]} 26. d5 {[%clk 0:00:44]}  exd5 {[%clk 0:01:36]} 27. Nxd5 {[%clk 0:00:44]}  Na5 {[%clk 0:01:18]} 28. Rd3 {[%clk 0:00:22]}  Nc4 {[%clk 0:01:15]} 29. Nf4 {[%clk 0:00:22]}  Nxa3 {[%clk 0:01:03]} 30. Rd7+ {[%clk 0:00:19]}  Ke8 {[%clk 0:00:58]} 31. Rxg7 {[%clk 0:00:19]}  Rxc3 {[%clk 0:00:57]} 32. Nxh5 {[%clk 0:00:17]}  b4 {[%clk 0:00:56]} 33. Rxg4 {[%clk 0:00:16]}  a5 {[%clk 0:00:53]} 34. Nf6+ {[%clk 0:00:17]}  Kf7 {[%clk 0:00:52]} 35. Ne4 {[%clk 0:00:16]}  Rc2 {[%clk 0:00:50]} 36. h4 {[%clk 0:00:13]}  b3 {[%clk 0:00:49]} 37. Nd6+ {[%clk 0:00:10]}  Ke6 {[%clk 0:00:48]} 38. Rg6+ {[%clk 0:00:11]}  Kd5 {[%clk 0:00:47]} 39. Nf5 {[%clk 0:00:10]}  b2 {[%clk 0:00:44]} 40. Ne3+ {[%clk 0:00:10]}  Ke5 {[%clk 0:00:23]} 41. Rg5+ {[%clk 0:00:10]}  Kf6 {[%clk 0:00:22]} 42. Nxc2 {[%clk 0:00:08]}  Nxc2 {[%clk 0:00:14]} 43. Rb5 {[%clk 0:00:04]}  Nb4 {[%clk 0:00:14]} 44. Rxa5 {[%clk 0:00:04]}  b1=Q+ {[%clk 0:00:14]} 45. Ke2 {[%clk 0:00:05]}  Qd3+ {[%clk 0:00:14]} 46. Ke1 {[%clk 0:00:06]}  Nc2# {[%clk 0:00:14]} 0-1


[Site "https://www.chess.com"]

[Event "Titled Tuesday Blitz July 25 Early 2023"]
[White "Tsyhanchuk, Stanislav"]
[Black "Erzhanov, Arman"]
[WhiteFideId "13505130"]
[BlackFideId "4138821"]
[WhiteElo "2317"]
[BlackElo "2468"]
[Result "0-1"]
[Round "6"]
[TimeControl "180+2"]
[Date "2023.07.25"]
[WhiteClock "0:00:03"]
[BlackClock "0:01:58"]
[Board "180"]

1. c4 {[%clk 0:02:59]}  d6 {[%clk 0:02:59]} 2. d4 {[%clk 0:02:58]}  e5 {[%clk 0:02:59]} 3. dxe5 {[%clk 0:02:57]}  dxe5 {[%clk 0:02:59]} 4. Qxd8+ {[%clk 0:02:58]}  Kxd8 {[%clk 0:03:00]} 5. Nc3 {[%clk 0:02:57]}  c6 {[%clk 0:03:01]} 6. Nf3 {[%clk 0:02:55]}  f6 {[%clk 0:03:01]} 7. a3 {[%clk 0:02:50]}  Be6 {[%clk 0:03:01]} 8. e4 {[%clk 0:02:47]}  Nd7 {[%clk 0:03:00]} 9. b4 {[%clk 0:02:46]}  a5 {[%clk 0:02:59]} 10. b5 {[%clk 0:02:40]}  Nc5 {[%clk 0:02:58]} 11. Be3 {[%clk 0:02:37]}  Kc7 {[%clk 0:02:57]} 12. O-O-O {[%clk 0:02:30]}  Nh6 {[%clk 0:02:55]} 13. h3 {[%clk 0:02:28]}  Nf7 {[%clk 0:02:55]} 14. Kb2 {[%clk 0:02:25]}  a4 {[%clk 0:02:48]} 15. Be2 {[%clk 0:02:22]}  Nb3 {[%clk 0:02:46]} 16. Nxa4 {[%clk 0:01:38]}  Rxa4 {[%clk 0:02:41]} 17. Kxb3 {[%clk 0:01:39]}  cxb5 {[%clk 0:02:37]} 18. Bc1 {[%clk 0:00:44]}  Nd6 {[%clk 0:02:29]} 19. Nd2 {[%clk 0:00:32]}  Nxc4 {[%clk 0:02:26]} 20. Nxc4 {[%clk 0:00:30]}  Bxc4+ {[%clk 0:02:26]} 21. Bxc4 {[%clk 0:00:31]}  Rxc4 {[%clk 0:02:27]} 22. f3 {[%clk 0:00:30]}  Bd6 {[%clk 0:02:27]} 23. Be3 {[%clk 0:00:29]}  Ra8 {[%clk 0:02:26]} 24. Bc1 {[%clk 0:00:23]}  Bc5 {[%clk 0:02:23]} 25. Bb2 {[%clk 0:00:22]}  Rca4 {[%clk 0:02:15]} 26. Rc1 {[%clk 0:00:14]}  b6 {[%clk 0:02:13]} 27. Rhd1 {[%clk 0:00:15]}  Rd8 {[%clk 0:02:10]} 28. Rxd8 {[%clk 0:00:10]}  Kxd8 {[%clk 0:02:11]} 29. Rd1+ {[%clk 0:00:11]}  Kc7 {[%clk 0:02:11]} 30. Rd5 {[%clk 0:00:11]}  Rc4 {[%clk 0:02:10]} 31. Bc3 {[%clk 0:00:09]}  Kc6 {[%clk 0:02:07]} 32. Bb4 {[%clk 0:00:08]}  Rd4 {[%clk 0:02:04]} 33. Rxd4 {[%clk 0:00:07]}  Bxd4 {[%clk 0:02:01]} 34. Bf8 {[%clk 0:00:05]}  g6 {[%clk 0:02:00]} 35. Kc2 {[%clk 0:00:05]}  f5 {[%clk 0:02:00]} 36. exf5 {[%clk 0:00:05]}  gxf5 {[%clk 0:02:01]} 37. Bg7 {[%clk 0:00:05]}  Kd5 {[%clk 0:02:01]} 38. g4 {[%clk 0:00:01]}  f4 {[%clk 0:01:57]} 39. Kb3 {[%clk 0:00:01]}  Bc5 {[%clk 0:01:56]} 40. Bf6 {[%clk 0:00:01]}  e4 {[%clk 0:01:56]} 41. fxe4+ {[%clk 0:00:02]}  Kxe4 {[%clk 0:01:57]} 42. Bh4 {[%clk 0:00:02]}  f3 {[%clk 0:01:57]} 43. g5 {[%clk 0:00:03]}  f2 {[%clk 0:01:56]} 44. Bxf2 {[%clk 0:00:03]}  Bxf2 {[%clk 0:01:57]} 45. Kb4 {[%clk 0:00:04]}  Kf5 {[%clk 0:01:56]} 46. h4 {[%clk 0:00:04]}  Kg4 {[%clk 0:01:56]} 47. Kxb5 {[%clk 0:00:02]}  Kxh4 {[%clk 0:01:56]} 48. g6 {[%clk 0:00:03]}  hxg6 {[%clk 0:01:56]} 49. a4 {[%clk 0:00:03]}  g5 {[%clk 0:01:56]} 50. a5 {[%clk 0:00:04]}  bxa5 {[%clk 0:01:57]} 51. Kxa5 {[%clk 0:00:03]}  g4 {[%clk 0:01:58]} 0-1


[Site "https://www.chess.com"]

[Event "Titled Tuesday Blitz July 25 Early 2023"]
[White "Nayak Rajesh"]
[Black "Herman, Daniel"]
[WhiteFideId "35017152"]
[BlackFideId "30935008"]
[WhiteElo "2306"]
[BlackElo "2427"]
[Result "1-0"]
[Round "6"]
[TimeControl "180+2"]
[Date "2023.07.25"]
[WhiteClock "0:00:04"]
[BlackClock "0:00:00"]
[Board "182"]

1. e4 {[%clk 0:03:00]}  e6 {[%clk 0:02:56]} 2. d4 {[%clk 0:02:58]}  d5 {[%clk 0:02:57]} 3. Nd2 {[%clk 0:02:58]}  c5 {[%clk 0:02:57]} 4. exd5 {[%clk 0:02:57]}  exd5 {[%clk 0:02:58]} 5. Ngf3 {[%clk 0:02:55]}  Nc6 {[%clk 0:02:54]} 6. Bb5 {[%clk 0:02:48]}  Nf6 {[%clk 0:02:48]} 7. O-O {[%clk 0:02:42]}  Be7 {[%clk 0:02:46]} 8. dxc5 {[%clk 0:02:41]}  Bxc5 {[%clk 0:02:46]} 9. b4 {[%clk 0:02:41]}  Bxb4 {[%clk 0:02:38]} 10. Re1+ {[%clk 0:02:39]}  Be7 {[%clk 0:02:15]} 11. Ba3 {[%clk 0:02:34]}  Kf8 {[%clk 0:02:08]} 12. Qc1 {[%clk 0:02:21]}  Bxa3 {[%clk 0:01:51]} 13. Qxa3+ {[%clk 0:02:20]}  Kg8 {[%clk 0:01:51]} 14. c4 {[%clk 0:02:15]}  Be6 {[%clk 0:01:40]} 15. Rad1 {[%clk 0:02:10]}  Qa5 {[%clk 0:01:29]} 16. Qc1 {[%clk 0:01:52]}  Qxa2 {[%clk 0:01:03]} 17. Ng5 {[%clk 0:01:41]}  Bf5 {[%clk 0:00:52]} 18. cxd5 {[%clk 0:01:40]}  Nd4 {[%clk 0:00:28]} 19. Bc4 {[%clk 0:01:34]}  Qc2 {[%clk 0:00:28]} 20. d6 {[%clk 0:01:31]}  Bg6 {[%clk 0:00:23]} 21. Qxc2 {[%clk 0:01:26]}  Nxc2 {[%clk 0:00:24]} 22. Nb3 {[%clk 0:01:23]}  Nxe1 {[%clk 0:00:21]} 23. Rxe1 {[%clk 0:01:20]}  h6 {[%clk 0:00:21]} 24. Nf3 {[%clk 0:01:15]}  Kh7 {[%clk 0:00:20]} 25. Ne5 {[%clk 0:01:15]}  Rhe8 {[%clk 0:00:19]} 26. f4 {[%clk 0:01:14]}  Rad8 {[%clk 0:00:19]} 27. Rd1 {[%clk 0:01:13]}  Ne4 {[%clk 0:00:18]} 28. d7 {[%clk 0:00:54]}  Re7 {[%clk 0:00:18]} 29. Rd4 {[%clk 0:00:48]}  Nf6 {[%clk 0:00:17]} 30. Nc5 {[%clk 0:00:44]}  b6 {[%clk 0:00:16]} 31. Nb7 {[%clk 0:00:43]}  Rdxd7 {[%clk 0:00:16]} 32. Nxd7 {[%clk 0:00:42]}  Rxd7 {[%clk 0:00:17]} 33. Nd6 {[%clk 0:00:39]}  Ne4 {[%clk 0:00:13]} 34. f5 {[%clk 0:00:39]}  Nxd6 {[%clk 0:00:07]} 35. fxg6+ {[%clk 0:00:38]}  fxg6 {[%clk 0:00:08]} 36. Bd3 {[%clk 0:00:37]}  Rd8 {[%clk 0:00:06]} 37. Rg4 {[%clk 0:00:34]}  Nf5 {[%clk 0:00:06]} 38. Be4 {[%clk 0:00:34]}  Rd1+ {[%clk 0:00:05]} 39. Kf2 {[%clk 0:00:33]}  Rf1+ {[%clk 0:00:06]} 40. Ke2 {[%clk 0:00:33]}  Ra1 {[%clk 0:00:05]} 41. h4 {[%clk 0:00:30]}  Ra2+ {[%clk 0:00:05]} 42. Kd3 {[%clk 0:00:27]}  h5 {[%clk 0:00:05]} 43. Rg5 {[%clk 0:00:27]}  Nxh4 {[%clk 0:00:06]} 44. Rxh5+ {[%clk 0:00:25]}  Kg8 {[%clk 0:00:02]} 45. Rxh4 {[%clk 0:00:25]}  g5 {[%clk 0:00:01]} 46. Rg4 {[%clk 0:00:25]}  Ra3+ {[%clk 0:00:01]} 47. Kd4 {[%clk 0:00:24]}  Ra5 {[%clk 0:00:02]} 48. Bd5+ {[%clk 0:00:23]}  Kf8 {[%clk 0:00:02]} 49. Rxg5 {[%clk 0:00:24]}  Ke7 {[%clk 0:00:03]} 50. Rf5 {[%clk 0:00:23]}  Kd6 {[%clk 0:00:03]} 51. Rg5 {[%clk 0:00:22]}  Ra4+ {[%clk 0:00:03]} 52. Bc4 {[%clk 0:00:21]}  a5 {[%clk 0:00:04]} 53. Rg6+ {[%clk 0:00:20]}  Kc7 {[%clk 0:00:04]} 54. Rxg7+ {[%clk 0:00:21]}  Kd6 {[%clk 0:00:04]} 55. Rg6+ {[%clk 0:00:21]}  Kc7 {[%clk 0:00:05]} 56. Rg5 {[%clk 0:00:20]}  Rb4 {[%clk 0:00:03]} 57. Rb5 {[%clk 0:00:18]}  Ra4 {[%clk 0:00:04]} 58. g4 {[%clk 0:00:18]}  Ra1 {[%clk 0:00:04]} 59. g5 {[%clk 0:00:17]}  Rg1 {[%clk 0:00:04]} 60. Bd3 {[%clk 0:00:17]}  a4 {[%clk 0:00:03]} 61. g6 {[%clk 0:00:17]}  a3 {[%clk 0:00:02]} 62. Rb3 {[%clk 0:00:07]}  a2 {[%clk 0:00:02]} 63. Rc3+ {[%clk 0:00:07]}  Kd6 {[%clk 0:00:02]} 64. g7 {[%clk 0:00:06]}  Rxg7 {[%clk 0:00:01]} 65. Ra3 {[%clk 0:00:05]}  Rg2 {[%clk 0:00:00]} 66. Bc4 {[%clk 0:00:04]} 1-0


[Site "https://www.chess.com"]

[Event "Titled Tuesday Blitz July 25 Early 2023"]
[White "Kohler, Aran"]
[Black "Bristy Mukherjee"]
[WhiteFideId "1002856"]
[BlackFideId "25077325"]
[WhiteElo "2252"]
[BlackElo "2404"]
[Result "0-1"]
[Round "6"]
[TimeControl "180+2"]
[Date "2023.07.25"]
[WhiteClock "0:00:11"]
[BlackClock "0:00:51"]
[Board "185"]

1. d4 {[%clk 0:02:58]}  h5 {[%clk 0:02:56]} 2. e4 {[%clk 0:02:54]}  d5 {[%clk 0:02:55]} 3. e5 {[%clk 0:02:52]}  c5 {[%clk 0:02:54]} 4. dxc5 {[%clk 0:02:39]}  Nc6 {[%clk 0:02:51]} 5. Nc3 {[%clk 0:02:35]}  d4 {[%clk 0:02:49]} 6. Ne4 {[%clk 0:02:23]}  Nxe5 {[%clk 0:02:44]} 7. Bf4 {[%clk 0:02:14]}  Nc6 {[%clk 0:02:30]} 8. Nf3 {[%clk 0:02:12]}  Bf5 {[%clk 0:02:29]} 9. Bd3 {[%clk 0:02:11]}  Bxe4 {[%clk 0:02:23]} 10. Bxe4 {[%clk 0:02:11]}  Qa5+ {[%clk 0:02:24]} 11. Qd2 {[%clk 0:02:09]}  Qxc5 {[%clk 0:02:22]} 12. O-O {[%clk 0:02:10]}  O-O-O {[%clk 0:02:11]} 13. a3 {[%clk 0:02:02]}  Nf6 {[%clk 0:02:11]} 14. Bd3 {[%clk 0:01:59]}  e5 {[%clk 0:02:08]} 15. Bf5+ {[%clk 0:01:45]}  Kb8 {[%clk 0:02:05]} 16. Bg5 {[%clk 0:01:41]}  Bd6 {[%clk 0:01:54]} 17. Rfe1 {[%clk 0:01:33]}  Ne7 {[%clk 0:01:52]} 18. Bxf6 {[%clk 0:01:29]}  gxf6 {[%clk 0:01:53]} 19. Bh3 {[%clk 0:01:28]}  Qc7 {[%clk 0:01:48]} 20. b4 {[%clk 0:01:27]}  Nd5 {[%clk 0:01:44]} 21. Bf5 {[%clk 0:01:24]}  Rhg8 {[%clk 0:01:40]} 22. g3 {[%clk 0:01:17]}  Nf4 {[%clk 0:01:38]} 23. Kh1 {[%clk 0:01:13]}  Ne6 {[%clk 0:01:37]} 24. Be4 {[%clk 0:01:13]}  Ng7 {[%clk 0:01:32]} 25. Qd3 {[%clk 0:01:12]}  f5 {[%clk 0:01:29]} 26. Bxf5 {[%clk 0:01:09]}  Nxf5 {[%clk 0:01:24]} 27. Qxf5 {[%clk 0:01:09]}  Qc6 {[%clk 0:01:22]} 28. Qe4 {[%clk 0:01:10]}  f6 {[%clk 0:01:16]} 29. Qxc6 {[%clk 0:01:09]}  bxc6 {[%clk 0:01:17]} 30. Nd2 {[%clk 0:01:09]}  f5 {[%clk 0:01:10]} 31. Nc4 {[%clk 0:01:09]}  e4 {[%clk 0:01:09]} 32. Nxd6 {[%clk 0:01:05]}  Rxd6 {[%clk 0:01:09]} 33. Rad1 {[%clk 0:01:04]}  Rgd8 {[%clk 0:01:09]} 34. f3 {[%clk 0:01:02]}  e3 {[%clk 0:01:02]} 35. Rd3 {[%clk 0:01:00]}  Kc7 {[%clk 0:01:01]} 36. Kg2 {[%clk 0:00:58]}  Kb6 {[%clk 0:01:01]} 37. f4 {[%clk 0:00:58]}  Kb5 {[%clk 0:01:01]} 38. Kf3 {[%clk 0:00:58]}  c5 {[%clk 0:01:00]} 39. bxc5 {[%clk 0:00:56]}  Kxc5 {[%clk 0:01:01]} 40. Rb3 {[%clk 0:00:56]}  Rb6 {[%clk 0:01:01]} 41. Rc1 {[%clk 0:00:51]}  Rdb8 {[%clk 0:01:00]} 42. Rd3 {[%clk 0:00:44]}  Rb1 {[%clk 0:00:59]} 43. Rdd1 {[%clk 0:00:41]}  Rxc1 {[%clk 0:00:59]} 44. Rxc1 {[%clk 0:00:42]}  Kc4 {[%clk 0:00:59]} 45. Ke2 {[%clk 0:00:42]}  Rb2 {[%clk 0:00:58]} 46. Kd1 {[%clk 0:00:39]}  Kc3 {[%clk 0:00:57]} 47. a4 {[%clk 0:00:19]}  Ra2 {[%clk 0:00:56]} 48. Ke2 {[%clk 0:00:18]}  Rxc2+ {[%clk 0:00:55]} 49. Kf3 {[%clk 0:00:13]}  Rxc1 {[%clk 0:00:51]} 50. h3 {[%clk 0:00:11]}  Rc2 {[%clk 0:00:50]} 51. a5 {[%clk 0:00:11]}  Rf2# {[%clk 0:00:51]} 0-1


[Site "https://www.chess.com"]